bitfinex-derivatives/quotes_ETHF0:USTF0_20251013
["timestamp","ask_amount","ask_price","bid_price","bid_amount"]
[1760371223370,3.2078,4136.8,4136.6,0.6256]
[1760371223371,3.2078,4136.8,4136.6,0.68174]
[1760371223571,3.2078,4137.3,4137.1,1.06029]
[1760371223776,3.2078,4137.3,4137.0,0.237]
[1760371224070,3.2078,4137.3,4137.2,0.8726]
[1760371225074,3.20341078,4137.3,4137.2,0.8726]
[1760371225374,0.2076,4139.0,4137.2,0.8726]
[1760371225375,3.2078,4138.3,4138.1,0.43458]
[1760371225671,3.2078,4138.3,4138.2,0.8726]
[1760371227974,3.2078,4138.3,4137.6,0.6256]
[1760371228172,0.43463,4137.7,4137.5,0.237]
[1760371228378,0.43463,4137.7,4137.6,0.247]
[1760371228569,0.5884,4137.9,4137.6,0.247]
[1760371228570,0.43461,4137.9,4137.6,0.247]
[1760371228770,0.43461,4137.9,4137.7,0.6256]
[1760371229068,3.7962,4138.3,4137.7,0.6256]
[1760371229269,0.4346,4138.0,4137.7,0.43462]
[1760371229480,0.43461,4137.9,4137.7,0.6256]
[1760371229978,0.43461,4137.9,4137.8,0.6256]
[1760371230179,3.18539568,4138.2,4137.6,0.247]
[1760371230377,0.43462,4137.8,4137.7,0.6256]
[1760371230574,0.4346,4138.0,4137.7,0.43463]
[1760371230780,0.4346,4138.0,4137.9,0.6256]
[1760371232683,0.4346,4138.0,4137.6,0.68163]
[1760371232684,0.43462,4137.8,4137.6,0.247]
[1760371232874,0.43461,4137.9,4137.8,0.6256]
[1760371233280,3.2078,4138.8,4138.1,0.6256]
[1760371233480,3.2078,4138.8,4138.3,0.6256]
[1760371233676,3.2078,4138.8,4138.7,0.6256]
[1760371234374,1.02292,4138.7,4138.6,0.247]
[1760371234575,1.02292,4138.7,4138.2,0.6256]
[1760371234576,0.43456,4138.4,4138.2,0.6256]
[1760371234777,0.43464,4137.6,4137.4,0.6256]
[1760371234976,1.02304,4137.6,4137.5,0.247]
[1760371236076,0.43467,4137.3,4137.2,0.6256]
[1760371236276,0.43466,4137.5,4137.2,0.247]
[1760371236476,0.43466,4137.4,4137.3,1.06027]
[1760371236676,0.43466,4137.4,4137.3,0.6256]
[1760371237079,3.2078,4137.7,4137.2,0.247]
[1760371237280,0.43465,4137.5,4137.4,0.43465]
[1760371237482,0.43465,4137.5,4137.4,0.6256]
[1760371237888,0.43465,4137.5,4136.8,3.2078]
[1760371237889,0.43469,4137.1,4136.9,0.6256]
[1760371238179,0.43474,4136.6,4136.4,0.43476]
[1760371238385,0.43474,4136.6,4136.5,1.1096]
[1760371238783,0.43473,4136.8,4136.5,1.54435]
[1760371238978,1.5091967,4138.5,4136.0,0.8626]
[1760371238979,0.4348,4136.1,4136.0,0.8626]
[1760371239285,0.4348,4136.1,4135.5,0.237]
[1760371239286,0.43485,4135.6,4135.5,0.6256]
[1760371239586,0.43486,4135.5,4135.4,0.6256]
[1760371239787,0.43486,4135.5,4135.4,0.8726]
[1760371239983,3.7962,4136.1,4135.4,0.8726]
[1760371240177,0.43484,4135.7,4135.6,0.6256]
[1760371240886,0.43486,4135.5,4135.4,0.247]
[1760371241082,0.43484,4135.7,4135.4,0.247]
[1760371241282,0.43486,4135.5,4135.4,0.247]
[1760371241486,0.43484,4135.7,4135.5,0.43486]
[1760371241685,3.15095913,4135.8,4135.7,0.6256]
[1760371242390,0.43486,4135.5,4135.4,0.8726]
[1760371242885,0.4349,4135.1,4135.0,0.6256]
[1760371243188,3.17880344,4135.1,4134.5,0.6256]
[1760371243487,1.02337,4134.5,4134.3,3.2078]
[1760371243694,1.02337,4134.5,4134.4,0.247]
[1760371243888,0.43495,4134.7,4134.4,0.247]
[1760371244185,3.2078,4135.6,4135.0,0.237]
[1760371244385,3.2078,4135.6,4135.5,0.6256]
[1760371244788,3.2078,4135.6,4135.5,0.8626]
[1760371245188,3.2078,4135.6,4135.5,1.1096]
[1760371245785,0.6064,4135.5,4134.8,3.8177]
[1760371245995,0.43491,4135.1,4134.9,0.247]
[1760371246185,0.6064,4135.5,4134.9,0.247]
[1760371246186,0.43491,4135.0,4134.9,0.247]
[1760371246488,1.04132,4134.9,4134.8,0.247]
[1760371246892,0.6064,4134.9,4134.3,3.8177]
[1760371247092,0.43492,4135.0,4134.7,0.6099]
[1760371247386,0.43492,4134.9,4134.8,0.6099]
[1760371247588,3.64271,4135.1,4134.8,0.6099]
[1760371247893,3.64271,4135.1,4135.0,0.6099]
[1760371248090,0.43492,4134.9,4134.7,0.8569]
[1760371248291,0.6064,4134.6,4134.5,0.43496]
[1760371248585,3.2078,4135.1,4134.6,0.6099]
[1760371248781,3.2078,4135.1,4134.5,0.4738]
[1760371248782,0.43493,4134.9,4134.8,0.6099]
[1760371248982,3.09684437,4134.9,4134.8,0.6099]
[1760371249183,3.53175437,4135.0,4134.8,0.6099]
[1760371249390,0.43491,4135.0,4134.8,0.6099]
[1760371249587,3.09684437,4134.9,4134.8,0.6099]
[1760371250095,0.5933,4135.0,4134.5,1.50656]
[1760371250290,3.2078,4135.1,4134.3,3.2078]
[1760371250494,0.435,4134.2,4133.8,3.2078]
[1760371250794,3.67871687,4134.1,4133.9,0.43502]
[1760371251093,3.10303147,4134.4,4134.0,1.03281]
[1760371251393,3.2078,4134.5,4134.3,1.03278]
[1760371251593,3.64277,4134.5,4134.3,1.03278]
[1760371251793,3.69633147,4134.4,4134.3,0.43498]
[1760371252597,3.69633147,4134.4,4134.2,0.43499]
[1760371252789,3.8011,4135.0,4134.3,1.68525]
[1760371252992,0.43492,4134.9,4134.6,0.43495]
[1760371253193,0.5933,4134.7,4134.6,0.43495]
[1760371253489,0.5933,4134.8,4133.8,3.2078]
[1760371253694,0.5933,4134.2,4134.1,0.435]
[1760371253893,3.2078,4134.5,4134.4,0.43497]
[1760371254099,3.2078,4134.5,4134.4,1.03277]
[1760371254291,3.4154,4134.5,4133.3,3.2078]
[1760371254492,0.5933,4133.4,4133.3,3.2078]
[1760371254698,3.2078,4133.9,4133.2,0.4351]
[1760371254894,3.2078,4133.9,4133.6,0.5978]
[1760371255095,3.2078,4133.9,4133.6,0.247]
[1760371255399,3.21071211,4133.9,4133.7,1.03285]
[1760371255700,0.00291211,4133.9,4133.7,1.03285]
[1760371256196,0.00291211,4133.9,4133.8,0.5978]
[1760371256596,0.00291211,4133.9,4133.8,0.8448]
[1760371257195,0.00291211,4133.9,4133.8,0.5978]
[1760371257501,0.00291211,4133.9,4133.7,0.247]
[1760371257702,0.43504,4133.8,4133.6,0.00216079]
[1760371258097,3.08227454,4133.7,4133.6,0.00216079]
[1760371258706,0.00291211,4133.9,4133.7,0.43505]
[1760371259199,0.00291211,4133.9,4133.6,0.00216079]
[1760371259395,0.00291211,4133.9,4133.7,0.68205]
[1760371261296,0.00291211,4133.9,4133.8,0.247]
[1760371261804,0.00291211,4133.9,4133.8,0.68204]
[1760371262096,0.00291211,4133.9,4133.8,0.43504]
[1760371262299,0.00291211,4133.9,4133.8,0.68204]
[1760371263491,0.00291211,4133.9,4133.8,3.88984]
[1760371264697,0.00291211,4133.9,4133.8,3.64284]
[1760371264896,0.00291211,4133.9,4133.8,3.88984]
[1760371267003,3.2078,4135.5,4135.4,0.43487]
[1760371267204,3.2078,4135.5,4135.4,0.68187]
[1760371267404,6.37401999,4135.5,4134.3,1.08747]
[1760371267700,0.43488,4135.3,4135.2,0.43489]
[1760371267894,0.43488,4135.3,4135.2,0.68189]
[1760371268201,3.16877141,4135.5,4135.4,0.43487]
[1760371268401,0.00255142,4135.5,4135.4,0.43487]
[1760371268796,3.2078,4136.5,4136.4,0.43476]
[1760371269002,3.2078,4137.5,4137.3,0.43467]
[1760371269300,1.3015967,4138.0,4137.8,0.43461]
[1760371269301,3.2078,4138.0,4137.8,0.43461]
[1760371269504,3.2078,4138.0,4137.9,0.247]
[1760371269809,3.09074032,4137.9,4137.6,0.43464]
[1760371269995,6.30145314,4138.0,4137.7,0.247]
[1760371270199,3.64531282,4138.0,4137.7,0.247]
[1760371270510,3.14937469,4137.9,4137.8,0.43461]
[1760371271202,3.21071282,4138.0,4137.8,0.43461]
[1760371272009,0.00291282,4138.0,4137.8,0.43461]
[1760371272304,0.00291282,4138.0,4137.8,3.64241]
[1760371273700,2.82e-06,4138.0,4137.8,3.64241]
[1760371273904,3.2078,4139.3,4139.2,0.43447]
[1760371274211,3.2078,4139.8,4139.7,0.43441]
[1760371274508,3.2078,4139.8,4139.7,0.68141]
[1760371274806,3.21091548,4139.8,4139.7,0.68141]
[1760371275006,0.00311548,4139.8,4139.7,0.68141]
[1760371275599,12.50545,4142.0,4140.2,1.08592]
[1760371275600,3.2078,4141.2,4140.2,1.08592]
[1760371275800,3.2078,4141.2,4140.3,3.4548]
[1760371276001,0.43428,4141.1,4140.3,3.2078]
[1760371276198,0.43428,4141.1,4140.7,0.43431]
[1760371276401,3.2078,4141.2,4140.8,0.247]
[1760371276607,3.2078,4141.2,4140.9,0.43429]
[1760371276806,3.2078,4141.2,4140.8,0.247]
[1760371276807,3.64394353,4141.2,4140.8,0.24949192]
[1760371277008,0.43428,4141.1,4140.8,0.68379192]
[1760371277305,0.43429,4141.0,4140.9,0.247]
[1760371278506,0.43429,4141.0,4140.8,0.00249192]
[1760371279415,3.19602076,4141.1,4140.8,0.00249192]
[1760371279817,3.2078,4143.1,4141.0,2.17143]
[1760371280003,3.2078,4143.1,4142.8,0.43409]
[1760371280203,3.64187,4143.1,4142.9,0.247]
[1760371280908,3.64490178,4143.1,4142.9,0.247]
[1760371281111,0.43409,4142.9,4142.5,0.247]
[1760371281316,3.2078,4142.6,4142.5,0.247]
[1760371281516,0.00303178,4143.1,4142.8,0.43409]
[1760371281708,0.00303178,4143.1,4142.5,0.247]
[1760371281910,0.00303178,4143.1,4142.9,0.43408]
[1760371282710,0.00303178,4143.1,4142.5,0.247]
[1760371282711,0.43710178,4143.1,4142.3,3.2078]
[1760371282915,0.43409,4142.9,4142.3,3.2078]
[1760371283109,3.2078,4142.6,4142.4,0.68113]
[1760371283306,3.2078,4142.6,4141.8,3.2078]
[1760371283515,0.43416,4142.2,4141.3,3.2078]
[1760371283814,3.18003066,4142.5,4141.7,0.4342]
[1760371284017,0.43423,4141.5,4141.3,3.2078]
[1760371284215,0.43426,4141.2,4141.0,0.247]
[1760371284412,3.10500459,4141.4,4140.8,0.00249192]
[1760371284610,0.43426,4141.2,4140.9,0.247]
[1760371284811,3.2078,4141.3,4140.9,0.247]
[1760371285110,0.43423,4141.5,4141.1,0.43426]
[1760371285414,3.2078,4141.8,4141.2,0.43426]
[1760371285415,0.43425,4141.4,4141.2,0.43426]
[1760371285609,6.34988404,4141.8,4141.2,0.43426]
[1760371285917,0.43427,4141.2,4140.8,0.00249192]
[1760371286114,3.2078,4141.3,4141.1,0.43427]
[1760371286412,3.2078,4141.8,4140.9,0.247]
[1760371286615,2.16987,4144.0,4141.3,1.08563]
[1760371286616,0.43416,4142.2,4141.3,1.08563]
[1760371286810,3.64195,4142.3,4142.0,0.43417]
[1760371287013,3.2078,4142.3,4142.2,0.5761]
[1760371287509,3.2078,4142.3,4141.6,0.5761]
[1760371287712,0.5657,4142.0,4141.7,0.247]
[1760371287913,0.99988,4142.0,4141.7,0.6812]
[1760371288116,0.99988,4142.0,4141.5,3.433]
[1760371288117,0.5657,4141.6,4141.4,0.43424]
[1760371288318,0.5657,4141.6,4141.5,0.247]
[1760371289013,0.5657,4141.6,4141.0,0.2252]
[1760371289014,0.99992,4141.6,4141.3,0.43425]
[1760371289214,0.99992,4141.6,4141.4,1.25734]
[1760371289515,4.2077,4141.8,4141.6,0.43421]
[1760371289715,4.2077,4141.8,4141.0,0.2252]
[1760371289716,0.5657,4141.7,4141.0,0.2252]
[1760371289912,0.5657,4141.4,4141.3,0.43425]
[1760371290114,0.5657,4141.6,4141.5,0.43422]
[1760371290419,3.7735,4141.8,4141.5,1.01032]
[1760371290715,1.26012,4142.5,4142.3,0.43414]
[1760371290716,3.2078,4142.5,4142.3,0.43414]
[1760371290908,3.64187,4143.0,4142.5,0.2252]
[1760371291217,0.43408,4142.9,4142.6,0.43411]
[1760371291418,0.43408,4142.9,4142.5,0.2252]
[1760371291419,3.2078,4143.0,4142.8,1.01019]
[1760371291717,3.2078,4143.0,4142.9,0.8231]
[1760371292219,0.00303178,4143.1,4143.0,1.23537]
[1760371292409,0.56873178,4143.1,4142.9,0.68108]
[1760371292718,0.00303178,4143.1,4143.0,0.8231]
[1760371293118,0.00303178,4143.1,4143.0,1.0483]
[1760371293523,0.00303178,4143.1,4143.0,0.8231]
[1760371294521,0.00303178,4143.1,4143.0,1.0483]
[1760371296116,3.2078,4144.0,4143.9,1.01007]
[1760371296315,3.2078,4144.5,4144.1,0.5761]
[1760371296515,3.2078,4144.5,4144.0,0.2252]
[1760371296516,3.2078,4144.5,4144.2,1.01004]
[1760371296718,0.43393,4144.4,4144.3,0.247]
[1760371297023,0.5657,4144.4,4144.3,0.247]
[1760371297224,1.00253816,4144.4,4144.3,0.24944566]
[1760371297523,1.00253816,4144.4,4144.3,0.57854566]
[1760371297524,0.00290816,4144.4,4144.3,0.57854566]
[1760371298023,1.00253816,4144.4,4144.3,0.00244566]
[1760371298224,0.00290816,4144.4,4144.3,0.82554566]
[1760371301816,0.56860816,4144.4,4144.3,0.00244566]
[1760371303224,4.27435966,4144.4,4144.3,0.00244566]
[1760371303617,4.27435966,4144.4,4143.1,3.2078]
[1760371303820,0.43406,4143.2,4142.8,0.5761]
[1760371304025,0.99976,4143.2,4143.1,0.5761]
[1760371304323,0.43414,4142.4,4142.2,0.5761]
[1760371304519,0.43413,4142.4,4142.2,0.247]
[1760371304721,0.43416,4142.2,4141.6,3.2078]
[1760371304929,0.43417,4142.1,4141.8,0.43419]
[1760371305125,0.43418,4142.0,4141.9,0.5761]
[1760371305625,0.4342,4141.8,4141.7,0.5761]
[1760371305926,0.4342,4141.8,4141.6,3.21061647]
[1760371306225,0.9999,4141.8,4141.7,0.247]
[1760371306417,0.9999,4141.8,4141.6,3.78671647]
[1760371306618,0.9999,4141.8,4141.6,3.21061647]
[1760371306619,0.4342,4141.8,4141.6,3.21061647]
[1760371306816,0.5657,4141.7,4141.6,3.21061647]
[1760371307216,0.5657,4141.7,4140.3,1.08588]
[1760371307217,0.4343,4140.9,4140.5,0.65953]
[1760371307418,0.5657,4140.9,4140.6,0.8066]
[1760371307628,0.43431,4140.8,4140.6,0.8066]
[1760371307926,1.03831,4140.8,4140.6,0.8066]
[1760371308127,0.43431,4140.8,4140.7,0.5596]
[1760371308429,1.04000012,4140.8,4140.7,0.00279324]
[1760371308735,4.21997612,4140.8,4139.8,3.2078]
[1760371308919,0.43445,4139.5,4138.8,3.7674]
[1760371309120,0.604,4139.7,4138.9,0.247]
[1760371309325,0.43442,4139.8,4139.5,0.5596]
[1760371309525,0.43443,4139.7,4139.5,0.247]
[1760371309727,0.604,4139.6,4139.5,0.247]
[1760371309935,0.00169012,4140.8,4140.2,0.43436]
[1760371310121,0.00169012,4140.8,4140.6,0.5596]
[1760371310324,0.00169012,4140.8,4140.5,0.2301]
[1760371310325,0.00169012,4140.8,4140.5,0.66443]
[1760371310533,0.00169012,4140.8,4140.5,0.2301]
[1760371310730,0.43432,4140.7,4140.6,0.5596]
[1760371311027,0.00169012,4140.8,4140.6,0.8066]
[1760371311237,0.00169012,4140.8,4140.6,0.247]
[1760371311430,0.00169012,4140.8,4140.7,0.5596]
[1760371311732,0.00169012,4140.8,4140.7,3.7674]
[1760371311922,0.4342,4141.8,4141.6,0.5596]
[1760371312230,3.64198,4142.0,4141.7,0.8066]
[1760371312421,3.64198,4142.0,4141.4,0.5525]
[1760371312422,3.2078,4142.0,4141.4,0.5525]
[1760371312627,3.2078,4142.0,4140.5,0.2301]
[1760371312628,0.6003,4141.6,4141.5,0.247]
[1760371312822,0.43423,4141.5,4141.2,0.5525]
[1760371313031,0.43423,4141.5,4141.3,0.7995]
[1760371313425,0.43423,4141.5,4141.3,0.247]
[1760371313426,1.03453,4141.5,4141.3,0.247]
[1760371313729,1.03453,4141.5,4141.3,0.7995]
[1760371314128,1.03453,4141.5,4141.3,0.5525]
[1760371314331,1.03453,4141.5,4141.4,0.247]
[1760371314727,0.00219359,4141.6,4141.4,0.247]
[1760371315033,0.6003,4141.5,4141.4,0.247]
[1760371315833,4.24233,4141.5,4141.4,0.247]
[1760371317528,0.00219359,4141.6,4141.5,1.21463]
[1760371317830,3.2078,4142.5,4141.8,0.5525]
[1760371318040,4.24223,4142.5,4142.2,0.98665]
[1760371318335,3.8081,4142.5,4142.3,0.43414]
[1760371318528,3.8081,4142.5,4142.3,0.98664]
[1760371318742,3.81058255,4142.5,4142.3,0.98664]
[1760371319236,4.24471255,4142.5,4142.3,0.98664]
[1760371319436,3.81058255,4142.5,4142.3,0.98664]
[1760371319632,3.81058255,4142.5,4142.3,0.43414]
[1760371319836,3.21028255,4142.5,4142.4,0.5525]
[1760371320137,0.00248255,4142.5,4142.4,0.55459932]
[1760371320637,0.00248255,4142.5,4142.4,0.80159932]
[1760371320939,3.2078,4143.5,4143.3,0.98653]
[1760371321442,3.2078,4144.0,4143.9,0.5525]
[1760371321634,3.2078,4144.0,4143.9,0.7995]
[1760371321834,3.2078,4144.5,4144.4,0.98643]
[1760371322026,3.20996738,4144.5,4144.4,1.23343]
[1760371322227,3.20996738,4144.5,4144.4,0.7995]
[1760371322426,0.43397,4144.0,4143.6,0.5525]
[1760371322626,0.6003,4144.4,4143.7,0.247]
[1760371322832,3.96806738,4144.5,4143.9,0.43397]
[1760371323136,3.96806738,4144.5,4143.8,0.5525]
[1760371323137,0.43396,4144.1,4143.8,0.5525]
[1760371323441,0.6003,4143.7,4143.3,3.2078]
[1760371323641,0.43401,4143.6,4143.4,0.7995]
[1760371323832,0.43401,4143.6,4143.5,0.5525]
[1760371324531,0.6003,4143.4,4143.2,0.43404]
[1760371324732,3.8081,4143.9,4143.3,1.23354]
[1760371324931,3.8081,4143.9,4143.3,0.7995]
[1760371325129,0.43403,4143.5,4143.3,0.247]
[1760371325335,0.43403,4143.5,4143.3,0.7995]
[1760371326535,0.43394,4144.3,4144.1,0.5525]
[1760371326740,3.20996738,4144.5,4144.4,0.5525]
[1760371326935,0.00216738,4144.5,4144.4,0.5525]
[1760371327642,0.00216738,4144.5,4144.4,0.7995]
[1760371331242,0.00216738,4144.5,4144.4,0.5525]
[1760371331636,0.43394,4144.3,4144.1,0.43395]
[1760371331838,0.43394,4144.3,4143.8,0.5525]
[1760371331839,1.08485,4144.3,4143.7,0.434]
[1760371332045,0.43402,4143.5,4143.3,3.2078]
[1760371332239,1.03434,4143.3,4143.1,0.43406]
[1760371332543,0.1715,4144.0,4143.4,0.43403]
[1760371332544,3.2078,4144.0,4143.4,0.43403]
[1760371332748,3.2078,4144.0,4143.2,0.247]
[1760371333042,0.43403,4143.5,4143.2,1.23354]
[1760371333248,0.43403,4143.4,4143.3,0.5525]
[1760371333940,1.08495,4143.9,4142.8,3.2078]
[1760371333941,0.6003,4143.1,4143.0,0.43407]
[1760371334346,0.6003,4143.3,4142.4,0.00209932]
[1760371334650,0.4341,4142.8,4142.7,0.5525]
[1760371335144,0.6003,4143.1,4142.7,0.247]
[1760371335340,0.6003,4143.1,4142.8,0.5525]
[1760371335643,3.2078,4143.2,4142.8,0.98659]
[1760371335844,0.43407,4143.1,4142.9,0.5525]
[1760371336039,3.64185,4143.2,4143.0,0.5525]
[1760371336745,0.43408,4142.9,4142.8,0.247]
[1760371337143,3.2078,4143.2,4143.0,0.43407]
[1760371337345,3.2078,4143.2,4143.1,0.5525]
[1760371338248,3.8081,4143.8,4143.2,0.43405]
[1760371338448,3.8081,4143.8,4143.4,0.98653]
[1760371338449,0.43402,4143.6,4143.4,0.98653]
[1760371338643,0.43402,4143.6,4143.5,0.5525]
[1760371339047,1.03432,4143.6,4143.4,0.247]
[1760371339345,0.43402,4143.6,4143.4,1.23353]
[1760371339548,0.43402,4143.6,4143.5,0.5525]
[1760371339744,0.6003,4143.5,4143.4,0.247]
[1760371339944,0.6003,4143.5,4142.8,0.43409]
[1760371339945,0.6003,4143.4,4142.8,0.43409]
[1760371340146,0.6003,4142.9,4142.8,0.247]
[1760371340446,0.43408,4143.0,4142.8,0.247]
[1760371340650,0.43408,4143.0,4142.8,0.7995]
[1760371341048,1.03439,4142.8,4142.7,3.2078]
[1760371341252,0.43409,4142.8,4142.7,3.4538]
[1760371341444,0.43409,4142.8,4142.7,4.0063]
[1760371342045,0.43408,4143.0,4142.9,0.5525]
[1760371342650,0.43408,4143.0,4142.8,0.43409]
[1760371342651,0.97889,4142.8,4142.7,0.246]
[1760371342841,0.43412,4142.5,4142.4,0.00209932]
[1760371343047,0.97892,4142.5,4142.4,0.00209932]
[1760371343851,0.43412,4142.5,4142.4,0.00209932]
[1760371344745,4.28998733,4142.5,4142.4,0.00209932]
[1760371344949,0.43423,4141.5,4141.1,3.2078]
[1760371345251,0.43429,4141.0,4140.2,0.5474]
[1760371345554,3.2078,4141.6,4141.1,0.5474]
[1760371345756,3.2078,4141.6,4141.2,0.7934]
[1760371345950,0.43424,4141.4,4141.3,0.247]
[1760371346151,0.97904,4141.4,4141.3,0.247]
[1760371346449,3.21045758,4141.6,4141.3,0.7944]
[1760371346648,0.00265758,4141.6,4141.5,1.21543]
[1760371346954,7.58e-06,4141.6,4141.5,1.21543]
[1760371348555,7.58e-06,4141.6,4141.5,1.46243]
[1760371351351,7.58e-06,4141.6,4141.5,2.75230703]
[1760371351852,4.18665,4143.3,4142.4,1.08534]
[1760371352058,4.18665,4143.3,4143.0,0.43407]
[1760371352059,0.43406,4143.2,4143.0,0.43407]
[1760371352253,3.2078,4143.3,4143.1,0.68106]
[1760371352454,3.2078,4143.3,4143.2,0.5474]
[1760371352956,0.00262836,4143.3,4143.2,0.5474]
[1760371354751,0.00262836,4143.3,4142.2,0.43415]
[1760371354752,1.08516,4143.1,4142.2,0.43415]
[1760371354953,6.31300183,4143.3,4142.3,0.7934]
[1760371355155,0.43413,4142.5,4142.3,0.7934]
[1760371355379,0.43413,4142.5,4142.3,1.22754]
[1760371355556,0.43413,4142.5,4142.4,0.5474]
[1760371355751,3.2078,4142.8,4142.0,0.2338]
[1760371355957,1.80162,4142.5,4141.9,0.43418]
[1760371356155,0.43414,4142.4,4141.6,3.2078]
[1760371356357,0.43414,4142.4,4141.7,0.246]
[1760371356358,3.2078,4142.3,4141.7,0.246]
[1760371356555,3.7526,4142.3,4141.7,0.246]
[1760371356765,3.07593276,4142.2,4141.8,0.5474]
[1760371356965,0.43416,4142.2,4142.1,0.5474]
[1760371357260,0.43414,4142.4,4142.3,0.5474]
[1760371357857,1.08529,4142.6,4141.9,0.43419]
[1760371358062,0.43416,4142.2,4142.0,0.98158]
[1760371358497,0.43416,4142.2,4142.1,0.247]
[1760371359165,0.97896,4142.2,4142.1,0.247]
[1760371359559,0.97896,4142.2,4141.6,3.2078]
[1760371359560,0.5448,4142.2,4141.3,1.29011725]
[1760371359859,3.56237858,4142.2,4142.0,0.5474]
[1760371360053,0.43416,4142.2,4142.1,0.7934]
[1760371360259,3.2078,4142.8,4142.1,0.246]
[1760371360466,3.2078,4142.8,4142.7,0.9815]
[1760371360859,0.5448,4142.7,4142.1,0.43416]
[1760371361062,0.5448,4142.7,4142.2,0.247]
[1760371361262,6.36928738,4142.8,4142.4,0.98153]
[1760371361263,0.43412,4142.6,4142.4,0.98153]
[1760371361573,0.43414,4142.4,4142.2,0.68115]
[1760371361760,0.43412,4142.6,4142.4,0.43413]
[1760371362067,0.43412,4142.6,4142.2,0.247]
[1760371362068,0.5448,4142.3,4142.2,0.247]
[1760371362268,0.43416,4142.2,4142.0,0.43417]
[1760371362566,0.43416,4142.2,4142.1,0.246]
[1760371362769,0.43418,4142.0,4141.8,0.43419]
[1760371362972,0.4342,4141.8,4141.6,3.2078]
[1760371363264,0.43423,4141.5,4141.4,2.27175725]
[1760371363461,0.97905,4141.3,4141.2,0.00303197]
[1760371363863,0.97905,4141.3,4140.5,1.29011725]
[1760371363864,0.97912,4140.6,4140.5,1.29011725]
[1760371364063,0.5448,4140.3,4140.1,3.64217]
[1760371364260,0.5448,4140.9,4140.2,0.247]
[1760371364466,0.43436,4140.3,4140.2,0.247]
[1760371364771,0.43435,4140.4,4140.2,0.247]
[1760371364969,0.43657376,4140.4,4140.2,0.24968439]
[1760371365170,0.43657376,4140.4,4140.2,0.68404439]
[1760371365367,0.5448,4140.3,4140.2,0.00268439]
[1760371365564,3.70561164,4140.3,4140.2,0.00268439]
[1760371366164,0.00222376,4140.4,4140.2,0.55008439]
[1760371366365,0.43657376,4140.4,4140.2,0.00268439]
[1760371366769,0.5448,4140.3,4140.2,0.00268439]
[1760371367274,0.00222376,4140.4,4140.3,0.43436]
[1760371367662,0.5448,4140.3,4140.2,0.24868439]
[1760371367868,0.43657376,4140.4,4140.2,1.23044439]
[1760371368165,6.84631389,4140.3,4140.2,0.00268439]
[1760371368569,3.757,4140.3,4140.2,0.00268439]
[1760371371177,3.2078,4140.3,4140.2,0.00268439]
[1760371372371,3.2078,4140.3,4140.2,0.59028439]
[1760371372875,3.7962,4140.3,4140.2,0.00268439]
[1760371373272,6.91651395,4140.3,4140.2,0.00268439]
[1760371373468,6.91651395,4140.3,4139.1,3.2078]
[1760371373469,1.08592,4140.2,4139.1,3.2078]
[1760371373670,0.5884,4139.3,4139.2,0.68047]
[1760371374066,0.5884,4139.3,4139.1,3.2078]
[1760371374067,1.02287,4139.2,4139.1,3.2078]
[1760371374274,1.02287,4139.2,4138.4,1.29011725]
[1760371374275,0.5884,4138.7,4138.6,3.64233]
[1760371374470,0.5884,4138.7,4138.6,3.89018512]
[1760371375177,0.5884,4138.7,4138.6,3.20965512]
[1760371375376,0.5884,4138.7,4138.6,3.45565512]
[1760371375576,0.5884,4138.7,4138.6,3.20965512]
[1760371375774,3.6677671,4138.7,4138.6,0.00185512]
[1760371376071,3.2078,4139.2,4138.6,0.00185512]
[1760371376275,3.7962,4139.2,4138.6,0.00185512]
[1760371376574,3.18010446,4139.0,4138.9,0.5876]
[1760371376778,0.5884,4140.1,4139.8,0.4344]
[1760371376979,0.43437,4140.2,4139.9,0.43439]
[1760371377270,0.43441,4139.9,4139.6,0.68142]
[1760371377478,0.5884,4139.8,4139.7,0.43441]
[1760371378167,3.2078,4139.8,4139.6,0.68142]
[1760371378372,0.5884,4139.7,4139.6,0.68142]
[1760371378573,0.5884,4139.7,4138.9,0.5876]
[1760371378574,0.43445,4139.5,4138.9,0.5876]
[1760371378780,0.5884,4139.6,4139.0,0.43449]
[1760371378973,3.2078,4139.8,4139.0,0.247]
[1760371378974,0.5884,4139.2,4139.0,0.247]
[1760371379177,3.2078,4139.3,4139.0,0.247]
[1760371379482,1.02289,4139.1,4139.0,0.247]
[1760371379980,0.5884,4139.1,4139.0,0.247]
[1760371380381,0.5884,4139.1,4138.7,0.43452]
[1760371380680,3.2078,4139.3,4138.7,0.68152]
[1760371380874,0.43449,4139.1,4138.8,0.43451]
[1760371381079,0.5884,4139.0,4138.8,0.43451]
[1760371381284,0.5884,4139.0,4138.9,0.4345]
[1760371381574,0.58954,4139.5,4139.1,0.43448]
[1760371381575,0.43445,4139.4,4139.1,0.43448]
[1760371381784,4.23066,4139.3,4139.1,0.43448]
[1760371381976,3.7962,4139.3,4139.1,0.43448]
[1760371382171,3.20848098,4139.7,4139.3,0.43445]
[1760371382373,0.43444,4139.5,4139.3,0.43445]
[1760371382570,1.02284,4139.5,4139.3,0.43445]
[1760371382775,0.5884,4139.4,4139.2,0.43447]
[1760371383678,3.2078,4139.5,4139.4,0.43445]
[1760371383885,0.1722,4141.0,4140.2,1.02196]
[1760371383886,3.2078,4140.5,4140.2,1.02196]
[1760371384082,3.2078,4140.5,4140.3,0.5876]
[1760371384382,3.2078,4141.0,4140.3,0.5876]
[1760371385184,3.2078,4141.5,4141.3,0.43424]
[1760371385392,3.4548,4141.5,4141.4,0.5876]